bitfinex/quotes_SOLUSD_20220207
["timestamp","ask_amount","ask_price","bid_price","bid_amount"]
[1644246732510,2.35123783,120.96,120.81,54.56386909]
[1644246732511,15.19720926,120.92,120.81,54.56386909]
[1644246732712,15.44720926,120.92,120.81,54.56386909]
[1644246733911,15.44720926,120.92,120.78,48.4885]
[1644246733912,15.44720926,120.92,120.83,53.99852538]
[1644246734713,24.2208,120.93,120.83,53.99852538]
[1644246734913,24.2208,120.93,120.83,54.24852538]
[1644246735115,24.2208,120.93,120.83,64.18852538]
[1644246735717,15.09446071,120.93,120.83,64.18852538]
[1644246735915,15.09446071,120.93,120.83,63.93852538]
[1644246736115,15.09446071,120.93,120.83,64.18852538]
[1644246736617,21.09446071,120.93,120.83,64.18852538]
[1644246737414,21.09446071,120.93,120.83,70.18852538]
[1644246737614,21.09446071,120.93,120.83,22.3531]
[1644246737815,21.09446071,120.93,120.81,22.3555]
[1644246738015,47.9837,120.92,120.81,22.3555]
[1644246738218,60.6496,120.92,120.81,28.3555]
[1644246738418,4.136,120.91,120.79,9.94]
[1644246738616,4.78320128,120.9,120.77,52.71084969]
[1644246738816,27.7152,120.89,120.77,52.71084969]
[1644246739118,15.09446071,120.88,120.79,12.4178]
[1644246739315,0.25,120.88,120.79,12.4178]
[1644246739514,0.25,120.88,120.79,22.3578]
[1644246740116,158.0,120.87,120.72,12.00064793]
[1644246740317,60.56,120.86,120.66,0.2]
[1644246740517,12.4259,120.83,120.67,6.09363]
[1644246740722,32.5068,120.82,120.67,50.76804283]
[1644246740916,4.14,120.81,120.67,50.76804283]
[1644246741116,27.1904,120.81,120.67,50.76804283]
[1644246741318,68.8733,120.81,120.67,63.19754283]
[1644246741517,68.8733,120.81,120.67,73.13754283]
[1644246742119,74.8733,120.81,120.67,73.13754283]
[1644246742321,70.7333,120.81,120.67,73.38754283]
[1644246742922,12.4299,120.78,120.67,73.13754283]
[1644246743121,18.4299,120.78,120.67,73.13754283]
[1644246743322,18.6799,120.78,120.67,73.13754283]
[1644246743720,18.6799,120.78,120.67,63.19754283]
[1644246744521,18.6799,120.78,120.67,18.52313]
[1644246744724,18.6799,120.78,120.67,6.09363]
[1644246745322,22.8209,120.78,120.67,6.09363]
[1644246746421,22.8209,120.78,120.68,42.06687594]
[1644246746422,18.6799,120.78,120.68,42.06687594]
[1644246746621,18.6799,120.78,120.69,6.09262]
[1644246746823,18.6799,120.78,120.7,43.40172913]
[1644246747023,18.4299,120.78,120.7,43.40172913]
[1644246747222,18.4299,120.78,120.7,6.09212]
[1644246748322,2.14682857,120.77,120.7,46.50215399]
[1644246748626,6.0,120.77,120.7,5.89212]
[1644246749225,6.0,120.77,120.71,1.73306842]
[1644246749526,28.9072,120.8,120.72,6.09111]
[1644246749924,28.9072,120.8,120.72,7.82417842]
[1644246750423,28.9072,120.8,120.72,6.09111]
[1644246750626,41.3342,120.8,120.72,6.34111]
[1644246750825,28.9072,120.8,120.72,20.49917842]
[1644246751024,28.9072,120.8,120.73,41.83956266]
[1644246751229,6.0,120.8,120.74,6.0901]
[1644246751623,29.0504,120.81,120.74,6.0901]
[1644246752224,41.7261,120.81,120.74,6.0901]
[1644246754128,45.8651,120.81,120.74,6.0901]
[1644246754929,12.356217,120.8,120.74,6.0901]
[1644246755128,12.4291,120.79,120.74,6.0901]
[1644246755328,12.6791,120.79,120.74,6.0901]
[1644246755529,18.6791,120.79,120.74,6.0901]
[1644246756236,24.787163,120.78,120.74,6.0901]
[1644246756629,18.4289,120.78,120.74,6.0901]
[1644246757431,18.6789,120.78,120.74,6.0901]
[1644246757831,12.4344,120.75,120.68,0.024]
[1644246758032,12.4344,120.75,120.66,0.024]
[1644246758333,18.6844,120.75,120.66,0.024]
[1644246758734,18.6844,120.75,120.64,0.224]
[1644246759134,12.4347,120.72,120.65,0.024]
[1644246759333,12.4347,120.72,120.63,0.224]
[1644246759533,12.4347,120.72,120.64,0.024]
[1644246759735,18.4347,120.72,120.64,0.024]
[1644246761538,18.6847,120.72,120.64,0.024]
[1644246762037,12.4403,120.69,120.64,0.024]
[1644246762236,12.4403,120.69,120.63,6.09565]
[1644246762237,12.6903,120.69,120.63,6.09565]
[1644246763236,18.6903,120.69,120.63,6.09565]
[1644246764438,18.4403,120.69,120.63,6.29565]
[1644246764638,18.4403,120.69,120.63,1.93306842]
[1644246764639,6.0,120.69,120.63,1.93306842]
[1644246764838,6.0,120.69,120.63,1.73306842]
[1644246765041,42.2704,120.71,120.63,1.73306842]
[1644246765442,42.2704,120.71,120.62,0.224]
[1644246766040,42.2704,120.71,120.61,0.224]
[1644246766240,42.2704,120.71,120.62,0.024]
[1644246767043,42.5204,120.71,120.62,0.024]
[1644246767242,42.5204,120.71,120.62,38.85837476]
[1644246767443,42.5204,120.71,120.63,0.2]
[1644246767843,42.2704,120.71,120.63,0.2]
[1644246769247,42.5204,120.71,120.63,0.2]
[1644246770348,42.5204,120.71,120.62,0.024]
[1644246770549,42.5204,120.71,120.61,12.6605]
[1644246770747,42.5204,120.71,120.62,0.224]
[1644246770948,42.5204,120.71,120.62,40.79410131]
[1644246771151,42.5204,120.71,120.63,0.2]
[1644246773173,42.5204,120.71,120.63,12.6347]
[1644246773380,29.8343,120.71,120.64,44.03006404]
[1644246773575,6.0,120.71,120.65,0.2]
[1644246773775,6.0,120.71,120.65,10.14]
[1644246773975,30.0694,120.73,120.66,44.38081198]
[1644246774376,30.0694,120.73,120.66,56.81221198]
[1644246774576,6.0,120.73,120.66,58.5506235]
[1644246774777,28.9571,120.77,120.67,9.94]
[1644246774976,33.0981,120.77,120.68,42.43619721]
[1644246775176,28.9571,120.77,120.68,42.46019721]
[1644246775578,41.388,120.77,120.68,42.46019721]
[1644246775780,28.9571,120.77,120.68,42.71019721]
[1644246776782,29.2071,120.77,120.68,42.71019721]
[1644246776979,28.9571,120.77,120.68,54.63949721]
[1644246777480,158.0,120.75,120.6,0.2769728]
[1644246777680,0.32490848,120.72,120.6,0.2769728]
[1644246777880,78.544675,120.71,120.6,0.2769728]
[1644246778085,14.275623,120.7,120.6,0.2769728]
[1644246778280,14.084,120.69,120.6,0.2769728]
[1644246778486,103.074844,120.68,120.6,0.2769728]
[1644246778781,100.4644,120.68,120.6,0.2769728]
[1644246778981,4.144,120.67,120.6,0.2769728]
[1644246779183,10.144,120.67,120.6,0.2769728]
[1644246779384,10.394,120.67,120.6,0.2769728]
[1644246779584,22.8396,120.67,120.6,0.2769728]
[1644246779783,6.25,120.67,120.6,0.2769728]
[1644246779982,6.0,120.67,120.6,0.2769728]
[1644246780183,6.0,120.7,120.6,0.2769728]
[1644246780382,78.9903,120.72,120.61,9.94]
[1644246780582,78.9903,120.72,120.64,12.4327]
[1644246780782,12.4339,120.73,120.65,42.82430689]
[1644246781383,12.4339,120.73,120.65,40.32430689]
[1644246781786,12.4318,120.75,120.65,53.00670689]
[1644246781986,123.1623,120.78,120.66,11.6739364]
[1644246782183,6.47977549,120.81,120.67,35.12421598]
[1644246782383,4.141,120.81,120.67,36.85815238]
[1644246782782,4.141,120.81,120.67,35.12421598]
[1644246782984,24.4667,120.8,120.67,35.12421598]
[1644246783184,30.4667,120.8,120.67,35.12421598]
[1644246783684,27.081584,120.79,120.67,47.55411598]
[1644246783885,18.795084,120.78,120.67,35.12421598]
[1644246784086,4.141,120.79,120.67,35.12421598]
[1644246784387,6.0,120.78,120.65,9.94]
[1644246784592,4.141,120.77,120.65,9.94]
[1644246784790,4.141,120.77,120.63,9.94]
[1644246784791,24.7781,120.76,120.63,9.94]
[1644246784986,4.142,120.75,120.61,57.2612]
[1644246785187,4.142,120.75,120.61,9.94]
[1644246785391,22.8236,120.75,120.61,55.84283394]
[1644246785587,32.7636,120.75,120.61,55.84283394]
[1644246785793,45.6132,120.74,120.61,43.40703394]
[1644246786000,4.143,120.73,120.61,41.40703394]
[1644246786192,59.9462,120.74,120.61,41.40703394]
[1644246786391,6.25,120.73,120.61,41.40703394]
[1644246786790,6.25,120.73,120.61,41.65703394]
[1644246786998,12.4366,120.7,120.61,54.09363394]
[1644246787492,18.6866,120.7,120.61,54.09363394]
[1644246789095,18.6866,120.7,120.61,12.4366]
[1644246789296,18.6866,120.7,120.6,0.2769728]
[1644246790205,18.4366,120.7,120.6,0.2769728]
[1644246790397,18.4366,120.7,120.62,46.1572686]
[1644246790998,18.4366,120.7,120.6,0.2769728]
[1644246791298,12.791912,120.69,120.6,0.2769728]
[1644246791598,12.4382,120.68,120.6,0.2769728]
[1644246791800,12.6882,120.68,120.6,0.2769728]
[1644246791999,18.6882,120.68,120.6,0.2769728]
[1644246792604,18.6882,120.68,120.6,0.3009728]
[1644246792803,18.6882,120.68,120.6,12.7386728]
[1644246793003,18.6882,120.68,120.61,39.94656156]
[1644246793203,18.6882,120.68,120.61,39.97056156]
[1644246793703,18.6882,120.68,120.61,0.024]
[1644246793903,18.6882,120.68,120.6,0.2769728]
[1644246794618,18.6882,120.68,120.6,0.3009728]
[1644246794806,18.6882,120.68,120.6,42.39720923]
[1644246795503,18.6882,120.68,120.6,42.37320923]
[1644246796603,18.6882,120.68,120.6,42.39720923]
[1644246797204,18.4382,120.68,120.6,42.39720923]
[1644246797703,18.4382,120.68,120.6,42.37320923]
[1644246797905,18.4382,120.68,120.6,42.39720923]
[1644246798504,18.6882,120.68,120.6,0.3009728]
[1644246799004,12.444,120.63,120.54,8.2949184]
[1644246799205,18.694,120.63,120.54,0.5539456]
[1644246799606,18.694,120.63,120.55,39.38194798]
[1644246800310,18.694,120.63,120.54,0.5539456]
[1644246801109,46.3374,120.62,120.54,0.5539456]
[1644246801409,12.4466,120.6,120.54,0.5539456]
[1644246801609,12.4466,120.6,120.54,46.70738065]
[1644246801908,18.6966,120.6,120.54,46.70738065]
[1644246802308,12.4466,120.6,120.54,46.70738065]
[1644246802508,12.4466,120.6,120.54,0.5539456]
[1644246803710,18.4466,120.6,120.55,48.35001753]
[1644246804510,6.0,120.6,120.55,48.35001753]
[1644246804713,64.7823,120.62,120.55,48.35001753]
[1644246805710,65.0323,120.62,120.55,48.35001753]
[1644246806411,64.7823,120.62,120.55,48.35001753]
[1644246807711,65.0323,120.62,120.55,48.35001753]
[1644246808212,65.0323,120.62,120.54,0.5539456]
[1644246809211,100.0,120.61,120.5,6.2]
[1644246809414,12.4486,120.58,120.5,6.2]
[1644246809620,24.7775,120.6,120.51,12.4479]
[1644246809811,6.25,120.58,120.51,12.4479]
[1644246810011,6.25,120.58,120.51,18.4479]
[1644246810213,6.25,120.58,120.51,64.60103774]
[1644246810413,0.25,120.58,120.51,64.60103774]
[1644246810614,6.25,120.58,120.51,64.60103774]
[1644246811112,0.25,120.58,120.51,64.60103774]
[1644246811313,6.0,120.58,120.51,64.60103774]
[1644246811712,6.25,120.58,120.51,64.60103774]
[1644246811911,0.25,120.58,120.51,64.60103774]
[1644246812715,12.4475,120.59,120.51,64.60103774]
[1644246813120,18.6975,120.59,120.51,62.10103774]
[1644246814141,18.4475,120.59,120.51,62.10103774]
[1644246814339,6.0,120.59,120.51,62.10103774]
[1644246814741,24.7775,120.6,120.51,62.12503774]
[1644246814940,24.7775,120.6,120.51,0.024]
[1644246815340,41.3711,120.6,120.51,0.024]
[1644246815742,41.6211,120.6,120.47,0.224]
[1644246815940,41.6211,120.6,120.48,0.024]
[1644246816139,41.6211,120.6,120.48,0.224]
[1644246816140,47.6211,120.6,120.48,0.224]
[1644246816339,47.6211,120.6,120.49,0.024]
[1644246816541,123.0,120.59,120.47,35.78014192]
[1644246816741,12.4508,120.56,120.47,35.78014192]
[1644246817241,18.7008,120.56,120.47,35.78014192]
[1644246817641,18.7008,120.56,120.47,37.53563539]
[1644246818042,18.7008,120.56,120.47,35.78014192]
[1644246819543,6.25,120.56,120.47,48.23204192]
[1644246819941,0.25,120.56,120.47,48.23204192]
[1644246820142,6.25,120.56,120.47,48.23204192]
[1644246820747,0.25,120.56,120.47,48.23204192]
[1644246820944,18.7008,120.56,120.47,48.23204192]
[1644246821149,18.7008,120.56,120.47,35.78014192]
[1644246822645,18.7008,120.56,120.47,48.23204192]
[1644246823046,18.4508,120.56,120.47,48.23204192]
[1644246823646,18.4508,120.56,120.47,47.73204192]
[1644246825749,18.4508,120.56,120.47,47.98204192]
[1644246825947,18.4508,120.56,120.49,35.11106636]
[1644246826550,18.4508,120.56,120.45,56.97340931]
[1644246826750,22.758,120.55,120.46,0.024]
[1644246826949,22.758,120.55,120.45,50.78740931]
[1644246827150,28.758,120.55,120.45,50.78740931]
[1644246827549,28.758,120.55,120.46,45.72150947]
[1644246827751,28.758,120.55,120.46,45.97150947]
[1644246827954,28.758,120.55,120.48,49.79189806]
[1644246828357,28.758,120.55,120.48,12.4512]
[1644246828652,41.2101,120.55,120.45,50.53740931]
[1644246829054,41.4601,120.55,120.45,50.78740931]
[1644246829254,41.4601,120.55,120.46,43.29841864]
[1644246829954,41.4601,120.55,120.46,55.75071864]
[1644246830255,41.4601,120.55,120.46,67.71071864]
[1644246832058,29.008,120.55,120.46,67.71071864]
[1644246832660,28.758,120.55,120.48,12.4503]
[1644246833260,6.0,120.55,120.48,12.4503]
[1644246833664,41.2248,120.58,120.48,12.4743]
[1644246833864,41.2248,120.58,120.5,12.4486]
[1644246834064,41.2248,120.58,120.5,12.4726]
[1644246834265,22.7762,120.58,120.5,12.4726]
[1644246834465,23.6168,120.59,120.5,24.4326]
[1644246834666,49.1933,120.62,120.51,0.024]
[1644246834965,55.71935323,120.62,120.51,54.38837576]
[1644246835165,55.71935323,120.62,120.53,12.4461]
[1644246835365,55.71935323,120.62,120.54,0.024]
[1644246835570,73.81885,120.62,120.54,0.024]
[1644246837069,24.800043,120.61,120.54,0.024]
[1644246837270,25.050043,120.61,120.53,34.20903155]
[1644246837470,12.6961,120.61,120.52,0.024]
[1644246837671,18.6961,120.61,120.52,0.024]
[1644246838070,18.4461,120.61,120.52,0.024]
[1644246838268,6.0,120.61,120.52,0.024]
[1644246838475,55.37375,120.62,120.53,11.96]
[1644246838672,55.37375,120.62,120.54,0.024]
[1644246838869,6.18045,120.62,120.55,12.4423]
[1644246839269,6.18045,120.62,120.55,24.4023]
[1644246839469,6.18045,120.62,120.54,38.11291467]
[1644246839669,12.18045,120.62,120.54,38.08891467]
[1644246839869,12.43045,120.62,120.54,0.024]
[1644246840270,12.4484,120.59,120.53,0.024]
[1644246840770,6.25,120.59,120.51,39.91240399]
[1644246840972,6.25,120.59,120.51,39.93640399]
[1644246841172,0.25,120.59,120.51,39.93640399]
[1644246841470,6.25,120.59,120.51,52.38460399]
[1644246841970,0.25,120.59,120.51,52.38460399]
[1644246842169,6.25,120.59,120.51,52.38460399]
[1644246842370,6.0,120.59,120.51,52.38460399]
[1644246842570,0.25,120.59,120.51,52.38460399]
[1644246842971,12.6975,120.59,120.51,52.38460399]
[1644246843170,18.4475,120.59,120.51,52.38460399]
[1644246843671,6.0,120.59,120.51,52.38460399]
[1644246844172,54.9988,120.61,120.51,12.4722]
[1644246844370,6.18045,120.6,120.51,12.4722]
[1644246844571,16.32745,120.6,120.51,0.024]
[1644246844771,16.57745,120.6,120.49,12.4495]
[1644246844971,41.5056,120.59,120.5,0.024]
[1644246845271,4.147,120.58,120.5,0.024]
[1644246845473,12.4524,120.55,120.47,0.024]
[1644246845671,18.4524,120.55,120.47,0.024]
[1644246845871,18.7024,120.55,120.47,0.024]
[1644246846074,18.7024,120.55,120.47,12.4757]
[1644246846474,18.7024,120.55,120.47,0.024]
[1644246847474,12.4558,120.52,120.4,11.96]
[1644246847675,18.4558,120.52,120.39,2.29013958]
[1644246847875,24.3178,120.51,120.38,0.41652428]
[1644246848273,53.4985,120.5,120.38,0.41652428]
[1644246848682,59.425,120.49,120.38,0.41652428]
[1644246849074,65.675,120.49,120.38,0.41652428]
[1644246849977,65.675,120.49,120.38,12.87692428]
[1644246850175,65.675,120.49,120.39,45.29021125]
[1644246850776,65.425,120.49,120.39,45.29021125]
[1644246850978,52.9656,120.49,120.39,45.29021125]
[1644246851179,6.0,120.49,120.4,11.96]
[1644246851378,6.0,120.49,120.41,46.39775508]
[1644246851578,28.9,120.52,120.41,46.39775508]
[1644246851876,24.1683,120.51,120.41,46.64775508]
[1644246852079,30.1683,120.51,120.41,46.64775508]
[1644246852287,30.4183,120.51,120.41,46.64775508]
[1644246852483,30.1683,120.51,120.41,46.64775508]
[1644246852983,30.1683,120.51,120.41,58.85455508]
[1644246853786,30.4183,120.51,120.41,58.85455508]
[1644246854384,30.4183,120.51,120.41,46.39775508]
[1644246854616,4.15,120.5,120.41,46.39775508]
[1644246854802,0.25,120.5,120.41,46.39775508]
[1644246855002,6.25,120.5,120.38,12.37652428]
[1644246855203,12.4624,120.48,120.38,0.41652428]
[1644246855402,27.8465,120.49,120.38,0.41652428]
[1644246855403,48.3351,120.47,120.38,0.41652428]
[1644246855601,54.3351,120.47,120.38,0.41652428]
[1644246855801,54.5851,120.47,120.38,0.41652428]
[1644246856002,54.3351,120.47,120.38,0.41652428]
[1644246856404,54.3351,120.47,120.38,24.83692428]
[1644246856603,54.3351,120.47,120.39,37.81306875]
[1644246857203,54.5851,120.47,120.39,50.02306875]
[1644246857503,6.25,120.47,120.39,62.23206875]
[1644246857703,0.25,120.47,120.39,62.23206875]
[1644246857903,6.25,120.47,120.39,62.23206875]
[1644246858102,6.0,120.47,120.39,62.23206875]
[1644246858304,6.0,120.47,120.39,62.48206875]
[1644246858504,53.2688,120.51,120.39,62.48206875]
[1644246859907,53.2688,120.51,120.39,62.23206875]
[1644246860107,53.2688,120.51,120.39,62.48206875]
[1644246860605,53.2688,120.51,120.41,42.10581574]
[1644246860806,53.2688,120.51,120.43,41.39450624]
[1644246861512,65.5133,120.51,120.43,41.39450624]
[1644246862206,65.5133,120.51,120.42,24.4158]
[1644246862207,126.922478,120.5,120.38,0.41652428]
[1644246862407,11.96,120.49,120.38,0.41652428]
[1644246862610,202.772157,120.48,120.38,0.41652428]
[1644246862808,215.343257,120.47,120.38,0.02402428]
[1644246863006,12.4695,120.44,120.38,0.02402428]
[1644246863205,16.8715,120.44,120.38,0.02402428]
[1644246863407,22.8715,120.44,120.38,0.02402428]
[1644246863606,12.356774,120.43,120.38,0.02402428]
[1644246863806,59.686874,120.43,120.38,0.02402428]
[1644246864006,65.686874,120.43,120.38,0.02402428]
[1644246864208,53.3301,120.43,120.38,0.02402428]
[1644246865108,5.420087,120.42,120.38,0.02402428]
[1644246865307,12.608826,120.42,120.38,0.00402428]
[1644246865509,105.0,120.4,120.3,11.96]
[1644246865807,12.360879,120.39,120.3,11.96]
[1644246866207,12.610879,120.39,120.35,36.73913109]
[1644246866407,0.25,120.39,120.31,12.4679]
[1644246866608,23.4903,120.43,120.26,213.63411695]
[1644246866809,23.4903,120.43,120.31,1.77094652]
[1644246867006,124.1407,120.46,120.35,1.77094652]
[1644246867207,124.1407,120.46,120.33,53.501]
[1644246867407,124.1407,120.46,120.35,41.00037576]
[1644246868306,124.3907,120.46,120.35,41.00037576]
[1644246868907,4.152,120.45,120.35,41.00037576]
[1644246869306,4.402,120.45,120.35,41.00037576]
[1644246869709,10.402,120.45,120.35,41.00037576]
[1644246870111,10.152,120.45,120.35,41.00037576]
[1644246870312,10.152,120.45,120.36,1.77094652]
[1644246870511,6.0,120.45,120.37,40.42228514]
[1644246870710,130.1407,120.46,120.37,40.42228514]
[1644246870911,134.2927,120.46,120.37,40.42228514]
[1644246871111,134.2927,120.46,120.35,11.96]
[1644246871311,142.6052,120.46,120.34,0.54923476]
[1644246871510,146.7572,120.46,120.34,0.54923476]
[1644246871910,147.0072,120.46,120.34,0.54923476]
[1644246872610,145.00202857,120.46,120.34,0.54923476]
[1644246873012,145.00202857,120.46,120.35,35.47881117]
[1644246873211,145.00202857,120.46,120.34,0.54923476]
[1644246873413,12.466,120.44,120.34,0.54923476]
[1644246873612,23.6271,120.43,120.34,0.54923476]
[1644246873813,23.8771,120.43,120.34,0.54923476]
[1644246874014,29.8771,120.43,120.34,0.54923476]
[1644246874212,54.3197,120.43,120.34,0.54923476]
[1644246874615,66.7867,120.43,120.34,0.54923476]
[1644246875413,66.7867,120.43,120.34,35.07075741]
[1644246875613,67.0367,120.43,120.34,35.07075741]
[1644246876417,67.0367,120.43,120.34,0.54923476]
[1644246877316,67.0367,120.43,120.35,43.04039542]
[1644246877716,66.7867,120.43,120.35,43.04039542]
[1644246878116,54.3197,120.43,120.35,43.04039542]
[1644246878717,48.3197,120.43,120.35,43.04039542]
[1644246878917,103.5946,120.46,120.36,1.77632098]
[1644246879117,147.2714,120.46,120.38,12.4606]
[1644246879317,147.2714,120.46,120.39,46.47823906]
[1644246879519,147.2714,120.46,120.38,12.4606]
[1644246879721,147.2714,120.46,120.37,9.98]
[1644246879921,147.2714,120.46,120.36,0.024]
[1644246880523,147.2714,120.46,120.38,34.24363617]
[1644246881120,53.8288,120.46,120.38,34.24363617]
[1644246881322,6.0,120.46,120.38,34.49363617]
[1644246881524,6.0,120.46,120.38,44.47363617]
[1644246881722,12.2445,120.51,120.38,56.93423617]
[1644246881925,47.4608,120.5,120.39,0.024]
[1644246882124,47.4608,120.5,120.4,9.98]
[1644246882326,47.4608,120.5,120.41,44.76122954]
[1644246882723,47.4608,120.5,120.41,50.76122954]
[1644246882924,47.4608,120.5,120.41,44.76122954]
[1644246883125,53.4608,120.5,120.41,44.76122954]
[1644246883524,65.9194,120.5,120.41,44.76122954]
[1644246884325,66.1694,120.5,120.41,44.76122954]
[1644246884526,86.750502,120.49,120.4,0.024]
[1644246884728,12.4646,120.47,120.35,0.024]
[1644246884929,24.4995,120.46,120.35,0.024]
[1644246885127,30.4995,120.46,120.35,0.024]
[1644246885326,24.3689,120.45,120.35,0.024]
[1644246885530,28.5209,120.45,120.35,48.5906569]
[1644246885729,34.7709,120.45,120.35,48.5906569]
[1644246885931,12.4649,120.44,120.35,54.5906569]
[1644246886129,6.0,120.44,120.35,54.5906569]
[1644246886330,6.0,120.44,120.35,64.5706569]
[1644246886729,6.0,120.44,120.35,77.0345569]
[1644246886931,30.3689,120.45,120.35,64.5706569]
[1644246887533,30.6189,120.45,120.35,64.5706569]
[1644246887929,30.3689,120.45,120.35,64.5706569]
[1644246888130,30.3689,120.45,120.35,77.2843569]
[1644246889531,30.6189,120.45,120.35,77.0343569]
[1644246889931,45.23022857,120.45,120.35,0.024]
[1644246890333,43.0834,120.45,120.35,0.024]
[1644246890733,22.8012,120.44,120.35,0.024]
[1644246891134,29.0512,120.44,120.35,0.024]
[1644246891534,12.4683,120.42,120.35,0.024]
[1644246891735,12.7183,120.42,120.34,0.54923476]
[1644246891935,29.077374,120.41,120.34,0.54923476]
[1644246892136,111.308178,120.41,120.34,0.54923476]
[1644246892336,111.558178,120.41,120.34,0.54923476]
[1644246892535,14.951195,120.4,120.34,0.54923476]
[1644246892739,0.25,120.4,120.34,0.54923476]
[1644246893035,12.4709,120.39,120.34,0.54923476]
[1644246893235,12.7209,120.39,120.34,0.54923476]
[1644246893436,6.25,120.39,120.34,0.54923476]
[1644246893637,6.25,120.39,120.35,39.92482889]
[1644246894036,0.25,120.39,120.35,39.92482889]
[1644246894237,6.0,120.39,120.34,0.54923476]
[1644246894638,6.25,120.39,120.34,0.54923476]
[1644246894838,0.25,120.39,120.34,0.54923476]
[1644246895039,6.25,120.39,120.34,0.54923476]
[1644246895243,6.25,120.39,120.35,38.69424317]
[1644246895862,0.25,120.39,120.35,38.69424317]
[1644246896263,48.0752,120.41,120.35,38.69424317]
[1644246897464,47.8252,120.41,120.35,38.19424317]
[1644246897665,45.7117,120.44,120.35,38.19424317]
[1644246897666,12.467,120.42,120.35,38.19424317]
[1644246897868,1.18323938,120.45,120.35,38.21824317]
[1644246898066,5.33523938,120.44,120.35,38.19424317]
[1644246898265,5.33523938,120.44,120.35,38.21824317]
[1644246898466,1.18323938,120.43,120.35,38.21824317]
[1644246898669,4.152,120.42,120.35,38.21824317]
[1644246898867,4.152,120.42,120.35,38.19424317]
[1644246899066,12.4696,120.4,120.35,38.19424317]
[1644246899269,12.7196,120.4,120.35,38.19424317]
[1644246899470,18.7196,120.4,120.35,38.19424317]
[1644246900070,6.0,120.4,120.35,38.19424317]
[1644246900271,29.3493,120.42,120.35,38.19424317]
[1644246901475,35.8163,120.42,120.35,38.19424317]
[1644246902075,23.3493,120.42,120.35,38.19424317]
[1644246902878,29.3493,120.42,120.35,38.19424317]
[1644246903479,6.0,120.42,120.35,50.65824317]
[1644246903680,1.18323938,120.45,120.36,9.98]
[1644246903880,23.3405,120.46,120.36,9.98]
[1644246903881,1.18323938,120.46,120.36,9.98]
[1644246904079,1.18323938,120.48,120.38,124.77]
[1644246904281,1.18323938,120.49,120.4,124.77]
[1644246904482,1.18323938,120.5,120.41,9.98]
[1644246904681,1.18323938,120.5,120.41,24.27980471]
[1644246904879,1.18323938,120.52,120.42,137.2193]
[1644246905079,1.18323938,120.56,120.43,9.98]
[1644246905280,1.18323938,120.56,120.43,20.3061257]
[1644246905480,1.18323938,120.56,120.44,44.12442195]
[1644246905682,1.18323938,120.56,120.45,9.98]
[1644246905881,1.18323938,120.57,120.45,20.0561257]
[1644246906084,1.18323938,120.57,120.46,22.5249257]
[1644246906281,1.18323938,120.58,120.47,9.98]
[1644246906481,0.68323938,120.58,120.47,11.75632099]
[1644246906682,112.5,120.59,120.48,36.29984953]
[1644246906884,112.5,120.59,120.49,9.98]
[1644246907080,112.5,120.59,120.49,17.76169811]
[1644246907280,112.5,120.59,120.49,18.01169811]
[1644246907682,112.5,120.59,120.5,14.22799811]
[1644246907883,189.4045,120.63,120.51,55.01272414]
[1644246908082,118.5,120.63,120.51,56.79442225]
[1644246908285,118.5,120.63,120.52,1.78169811]
[1644246908483,118.5,120.63,120.53,45.78236331]
[1644246908883,118.5,120.63,120.54,12.4426]
[1644246909085,4.146,120.66,120.54,12.4426]
[1644246909283,4.146,120.66,120.55,9.98]
[1644246909482,96.3864,120.67,120.55,9.98]
[1644246909686,96.3864,120.67,120.55,10.23]
[1644246910184,108.8286,120.67,120.56,48.83524849]
[1644246910385,41.4,120.67,120.56,48.83524849]
[1644246910583,41.4,120.67,120.56,49.08524849]